fUST/lending_fUST_20250404
["ID","MTS","AMOUNT","RATE_DAILY","PERIOD"]
[357110607,1743748252260,-1746.03402216,0.00020998,2]
[357110608,1743748252269,-152.28203276,0.00020999,2]
[357110609,1743748252278,-215.85272619,0.00020999,2]
[357110610,1743748252287,-150.65505126,0.00020999,2]
[357110611,1743748252296,-252.97036837,0.00020999,2]
[357110612,1743748252305,-150.02159135,0.00020999,2]
[357110613,1743748252314,-150.36093841,0.00020999,2]
[357110614,1743748252323,-500.0,0.00020999,2]
[357110615,1743748252332,-500.0,0.00020999,2]
[357110616,1743748252341,-500.0,0.00020999,2]
[357110617,1743748252350,-500.0,0.00020999,2]
[357110618,1743748252360,-180.26576978,0.00020999,2]
[357110619,1743748252369,-500.0,0.00020999,2]
[357110620,1743748252379,-206.06749426,0.00021,2]
[357110621,1743748252388,-2000.0,0.00021,14]
[357110622,1743748252397,-3000.0,0.00021,2]
[357110623,1743748252484,-151.0,0.00021,3]
[357110624,1743748252495,-152.35,0.00021,2]
[357110625,1743748252504,-152.35,0.00021,2]
[357110626,1743748252514,-2000.0,0.00021,4]
[357110627,1743748252524,-3000.0,0.0002101,2]
[357110628,1743748252533,-3000.0,0.0002102,2]
[357110629,1743748252542,-511.72931039,0.00021026,2]
[357110630,1743748252551,-500.0,0.00021026,2]
[357110631,1743748252561,-500.0,0.00021026,2]
[357110632,1743748252571,-500.0,0.00021026,2]
[357110633,1743748252580,-500.0,0.00021026,2]
[357110634,1743748252589,-3000.0,0.0002103,2]
[357110635,1743748252598,-3000.0,0.0002104,2]
[357110636,1743748252607,-3000.0,0.0002105,2]
[357110637,1743748252616,-500.0,0.00021054,2]
[357110638,1743748252625,-500.0,0.00021054,2]
[357110639,1743748252635,-500.0,0.00021054,2]
[357110640,1743748252644,-500.42321166,0.00021054,2]
[357110641,1743748252653,-3000.0,0.0002106,2]
[357110642,1743748252662,-3000.0,0.0002107,2]
[357110643,1743748252671,-3000.0,0.0002108,2]
[357110644,1743748252681,-500.0,0.00021081,2]
[357110645,1743748252690,-500.0,0.00021081,2]
[357110646,1743748252700,-500.0,0.00021081,2]
[357110647,1743748252709,-3000.0,0.0002109,2]
[357110648,1743748252718,-11099.46420118,0.00021095,2]
[357110649,1743748252729,-12500.0,0.00021095,2]
[357110650,1743748252740,-12500.0,0.00021095,2]
[357110651,1743748252749,-12500.0,0.00021095,2]
[357110652,1743748252758,-651.82740235,0.00021095,2]
[357110653,1743748252767,-3000.0,0.000211,2]
[357110654,1743748252778,-500.0,0.00021109,2]
[357110655,1743748252787,-850.02,0.00021109,2]
[357110656,1743748252797,-500.0,0.00021109,2]
[357110657,1743748252807,-3000.0,0.0002111,2]
[357110658,1743748252816,-3000.0,0.0002112,2]
[357110659,1743748252826,-3000.0,0.0002113,2]
[357110660,1743748252835,-500.0,0.00021136,2]
[357110661,1743748252845,-500.0,0.00021136,2]
[357110662,1743748252854,-3000.0,0.0002114,2]
[357110663,1743748252863,-3000.0,0.0002115,2]
[357110664,1743748252873,-3000.0,0.0002116,2]
[357110665,1743748252882,-500.0,0.00021163,2]
[357110666,1743748252891,-3000.0,0.0002117,2]
[357110667,1743748252901,-3000.0,0.0002118,2]
[357110668,1743748252910,-3000.0,0.0002119,2]
[357110669,1743748252920,-500.0,0.00021191,2]
[357110670,1743748252929,-3000.0,0.000212,2]
[357110671,1743748252938,-3000.0,0.0002121,2]
[357110672,1743748252948,-500.0,0.00021218,2]
[357110673,1743748252958,-3000.0,0.0002122,2]
[357110674,1743748252967,-3200.0,0.00021222,2]
[357110675,1743748252976,-3000.0,0.0002123,2]
[357110676,1743748252985,-3000.0,0.0002124,2]
[357110677,1743748252994,-1170.83,0.00021243,2]
[357110678,1743748253004,-7622.08,0.00021243,2]
[357110679,1743748253014,-511.23,0.00021243,2]
[357110680,1743748253023,-3003.13,0.00021243,2]
[357110681,1743748253032,-791.33,0.00021244,2]
[357110682,1743748253041,-1040.2,0.00021244,2]
[357110683,1743748253051,-500.0,0.00021244,2]
[357110684,1743748253060,-1969.45,0.00021244,2]
[357110685,1743748253069,-2739.63,0.00021245,2]
[357110686,1743748253079,-1173.54,0.00021245,2]
[357110687,1743748253089,-500.0,0.00021246,2]
[357110688,1743748253098,-3000.0,0.0002125,2]
[357110689,1743748253108,-5645.238729,0.0002126,2]
[357110690,1743748253117,-812.0262623,0.00021273,2]
[357110691,1743748253127,-602.91295732,0.000213,2]
[357110692,1743748253136,-500.0,0.000213,2]
[357110693,1743748253146,-500.0,0.000213,2]
[357110694,1743748253155,-500.0,0.000213,2]
[357110695,1743748253165,-3687.37097695,0.00021348,3]
[357110696,1743748253174,-500.0,0.0002141,2]
[357110697,1743748253184,-151.0,0.000215,4]
[357110698,1743748253193,-50000.0,0.000215,2]
[357110699,1743748253203,-26712.84,0.000215,2]
[357110700,1743748253212,-1170.83,0.00021516,2]
[357110701,1743748253221,-7622.08,0.00021517,2]
[357110702,1743748253231,-511.23,0.00021517,2]
[357110703,1743748253240,-3003.13,0.00021517,2]
[357110704,1743748253249,-791.33,0.00021518,2]
[357110705,1743748253259,-1040.2,0.00021518,2]
[357110706,1743748253267,-450.19,0.00021518,2]
[357110707,1743748253276,-1969.45,0.00021518,2]
[357110708,1743748253285,-2739.63,0.00021519,2]
[357110709,1743748253295,-1173.54,0.00021519,2]
[357110710,1743748253304,-3464.38,0.000216,2]
[357110711,1743748253313,-2559.28699558,0.0002177,2]
[357110712,1743748253321,-1170.83,0.0002179,2]
[357110713,1743748253331,-7622.08,0.00021791,2]
[357110714,1743748253340,-511.23,0.00021791,2]
[357110715,1743748253349,-3003.13,0.00021791,2]
[357110716,1743748253359,-791.33,0.00021792,2]
[357110717,1743748253367,-1040.2,0.00021792,2]
[357110718,1743748253377,-1969.45,0.00021792,2]
[357110719,1743748253386,-2739.63,0.00021793,2]
[357110720,1743748253394,-1173.54,0.00021793,2]
[357110721,1743748253404,-160.0,0.00021891,3]
[357110722,1743748253414,-516.32417119,0.00021917,2]
[357110723,1743748253423,-153.0,0.00021918,2]
[357110724,1743748253432,-153.0,0.00021918,2]
[357110725,1743748253442,-153.0,0.00021918,2]
[357110726,1743748253451,-153.0,0.00021918,2]
[357110727,1743748253460,-153.0,0.00021918,2]
[357110728,1743748253470,-153.0,0.00021918,2]
[357110729,1743748253479,-153.0,0.00021918,2]
[357110730,1743748253488,-153.0,0.00021918,2]
[357110731,1743748253497,-153.0,0.00021918,2]
[357110732,1743748253506,-153.0,0.00021918,2]
[357110733,1743748253515,-500.0,0.00021973,2]
[357110734,1743748253525,-500.0,0.00021973,2]
[357110735,1743748253534,-500.0,0.00021973,2]
[357110736,1743748253544,-500.0,0.00021973,2]
[357110737,1743748253553,-414.0486397,0.00021973,2]
[357110738,1743748253562,-500.0,0.00021973,2]
[357110739,1743748253571,-500.0,0.00021973,2]
[357110740,1743748253581,-500.0,0.00021973,2]
[357110741,1743748253590,-500.0,0.00021973,2]
[357110742,1743748253599,-500.0,0.00021973,2]
[357110743,1743748253608,-500.0,0.00021973,2]
[357110744,1743748253618,-500.0,0.00021973,2]
[357110745,1743748253627,-500.0,0.00021973,2]
[357110746,1743748253637,-500.0,0.00021973,2]
[357110747,1743748253647,-500.0,0.00021973,2]
[357110748,1743748253656,-500.0,0.00021973,2]
[357110749,1743748253666,-173.4959534,0.00021973,2]
[357110750,1743748253675,-353.8282364,0.00021973,2]
[357110751,1743748253685,-500.0,0.00021973,2]
[357110752,1743748253695,-500.0,0.00021973,2]
[357110753,1743748253704,-500.0,0.00021973,2]
[357110754,1743748253713,-500.78418819,0.00021973,2]
[357110755,1743748253726,-561.58658926,0.00021973,2]
[357110756,1743748253736,-282.70165832,0.00021973,2]
[357110757,1743748253746,-500.0,0.00021973,2]
[357110758,1743748253755,-500.78757264,0.00021973,2]
[357110759,1743748253766,-500.0,0.00021973,2]
[357110760,1743748253776,-500.0,0.00021973,2]
[357110761,1743748253785,-500.0,0.00021973,2]
[357110762,1743748253794,-501.09044714,0.00021973,2]
[357110763,1743748253806,-554.58139815,0.00021973,2]
[357110764,1743748253816,-500.0,0.00021973,2]
[357110765,1743748253825,-500.0,0.00021973,2]
[357110766,1743748253835,-500.0,0.00021973,2]
[357110767,1743748253844,-500.83960349,0.00021973,2]
[357110768,1743748253853,-500.0,0.00021973,2]
[357110769,1743748253864,-551.68943167,0.00021973,2]
[357110770,1743748253873,-500.0,0.00021973,2]
[357110771,1743748253883,-500.0,0.00021973,2]
[357110772,1743748253893,-500.0,0.00021973,2]
[357110773,1743748253903,-596.65252686,0.00021973,2]
[357110774,1743748253913,-398.89211434,0.0002198,2]
[357110775,1743748253922,-156.44957526,0.00021988,2]
[357110776,1743748253931,-18932.0567274,0.0002199,7]
[357110777,1743748253940,-215734.09575281,0.0002199,15]
[357110778,1743748253967,-9798.92222193,0.0002199,15]
[357110779,1743748254020,-500.0,0.00016859,2]
[357110780,1743748254030,-500.0,0.00017133,2]
[357110781,1743748254039,-9954.28857095,0.0002199,15]
[357110782,1743748254051,-1933.57572157,0.0002199,15]
[357110783,1743748254077,-621.72578956,0.00017407,2]
[357110784,1743748254086,-5502.4136246,0.0002199,15]
[357110785,1743748254098,-446.57231989,0.0002199,15]
[357110787,1743748536558,505.0,0.00025,120]
[357110789,1743749283609,185.010945,0.00015,3]
[357110805,1743749432366,-186.874844,0.00013699,2]
[357110807,1743749432377,-175.77460588,0.00015467,2]
[357110809,1743749432387,-12588.0233256,0.00015557,2]
[357110812,1743749432397,-247.59955376,0.00015567,2]
[357110814,1743749432407,-199.6099992,0.00015833,2]
[357110816,1743749432416,-231.0964365,0.00015992,2]
[357110818,1743749432426,-211.87097717,0.00016658,2]
[357110820,1743749432436,-248.40322811,0.00016849,2]
[357110822,1743749432445,-300.0,0.00016854,2]
[357110824,1743749432455,-500.0,0.00016855,2]
[357110826,1743749432464,-500.0,0.00016855,2]
[357110828,1743749432474,-439.06350893,0.00016855,2]
[357110829,1743749432484,-570.05070519,0.00016855,2]
[357110831,1743749432494,-500.0,0.00016855,2]
[357110834,1743749432504,-464.67816473,0.00016855,2]
[357110835,1743749432513,-500.0,0.00016855,2]
[357110838,1743749432523,-500.0,0.00016855,2]
[357110840,1743749432533,-500.0,0.00016855,2]
[357110842,1743749432542,-500.0,0.00016855,2]
[357110844,1743749432552,-500.0,0.00016855,2]
[357110846,1743749432562,-4563.9,0.00016855,2]
[357110848,1743749432571,-500.0,0.00016855,2]
[357110850,1743749432580,-500.0,0.00016855,2]
[357110852,1743749432590,-500.0,0.00016855,2]
[357110854,1743749432599,-582.58,0.00016855,2]
[357110856,1743749432608,-500.0,0.00016855,2]
[357110857,1743749432618,-500.0,0.00016855,2]
[357110861,1743749432627,-500.0,0.00016855,2]
[357110863,1743749432636,-500.0,0.00016855,2]
[357110867,1743749432646,-1834.78,0.00016855,2]
[357110870,1743749432655,-500.0,0.00016855,2]
[357110873,1743749432664,-500.0,0.00016855,2]
[357110876,1743749432674,-521.35326672,0.00016855,2]
[357110879,1743749432683,-500.0,0.00016855,2]
[357110882,1743749432693,-331.95,0.00016855,2]
[357110884,1743749432702,-362.58,0.00016855,2]
[357110888,1743749432713,-41183.21565307,0.00016855,2]
[357110890,1743749432723,-350.80202729,0.00016856,2]
[357110893,1743749432732,-528.39,0.00016856,2]
[357110896,1743749432742,-500.0,0.00016856,2]
[357110899,1743749432752,-500.0,0.00016856,2]
[357110902,1743749432762,-500.0,0.00016856,2]
[357110905,1743749432773,-500.0,0.00016856,2]
[357110909,1743749432783,-504.47148551,0.00016856,2]
[357110911,1743749432794,-508.84346544,0.00016856,2]
[357110914,1743749432803,-500.0,0.00016856,2]
[357110916,1743749432813,-596.39938883,0.00016856,2]
[357110918,1743749432824,-506.80774565,0.00016856,2]
[357110920,1743749432834,-500.0,0.00016856,2]
[357110921,1743749432845,-500.0,0.00016856,2]
[357110922,1743749432855,-599.72567381,0.00016856,2]
[357110923,1743749432867,-500.0,0.00016856,2]
[357110924,1743749432881,-501.9742945,0.00016856,2]
[357110925,1743749432893,-502.49742003,0.00016856,2]
[357110926,1743749432904,-500.0,0.00016856,2]
[357110927,1743749432915,-500.0,0.00016856,2]
[357110928,1743749432925,-518.29193319,0.00016856,2]
[357110930,1743749432935,-500.0,0.00016856,2]
[357110933,1743749432947,-500.0,0.00016856,2]
[357110935,1743749432961,-500.0,0.00016856,2]
[357110937,1743749432971,-502.80900431,0.00016856,2]
[357110939,1743749432981,-501.84,0.00016856,2]
[357110941,1743749432990,-500.0,0.00016856,2]
[357110943,1743749433001,-525.67421831,0.00016856,2]
[357110945,1743749433011,-500.0,0.00016856,2]
[357110947,1743749433022,-500.0,0.00016856,2]
[357110949,1743749433032,-500.0,0.00016856,2]
[357110951,1743749433042,-500.0,0.00016856,2]
[357110953,1743749433051,-500.0,0.00016856,2]
[357110955,1743749433062,-200.0,0.00016856,2]
[357110957,1743749433075,-500.0,0.00016856,2]
[357110959,1743749433085,-500.0,0.00016856,2]
[357110961,1743749433095,-500.0,0.00016856,2]
[357110963,1743749433105,-500.0,0.00016856,2]
[357110965,1743749433115,-500.0,0.00016856,2]
[357110967,1743749433125,-500.0,0.00016856,2]
[357110968,1743749433135,-575.50477616,0.00016856,2]
[357110970,1743749433146,-508.81205845,0.00016856,2]
[357110972,1743749433155,-368.73318357,0.00016856,2]
[357110974,1743749433165,-743.55,0.00016856,2]
[357110976,1743749433175,-506.08131021,0.00016856,2]
[357110978,1743749433185,-500.0,0.00016856,2]
[357110980,1743749433195,-500.0,0.00016856,2]
[357110982,1743749433204,-500.0,0.00016856,2]
[357110984,1743749433218,-586.41517312,0.00016856,2]
[357110987,1743749433228,-500.0,0.00016856,2]
[357110988,1743749433238,-348.61316512,0.00016856,2]
[357110991,1743749433248,-500.0,0.00016856,2]
[357110993,1743749433258,-500.0,0.00016856,2]
[357110995,1743749433269,-500.0,0.00016856,2]
[357110997,1743749433278,-500.0,0.00016856,2]
[357110998,1743749433288,-500.0,0.00016856,2]
[357111000,1743749433298,-646.82,0.00016856,2]
[357111003,1743749433308,-500.0,0.00016856,2]
[357111005,1743749433318,-500.0,0.00016856,2]
[357111007,1743749433328,-500.0,0.00016856,2]
[357111009,1743749433338,-500.0,0.00016856,2]
[357111011,1743749433349,-500.0,0.00016856,2]
[357111013,1743749433358,-500.0,0.00016856,2]
[357111015,1743749433368,-500.0,0.00016856,2]
[357111017,1743749433377,-500.0,0.00016856,2]
[357111019,1743749433387,-602.88000001,0.00016856,2]
[357111021,1743749433396,-169.07398118,0.00016856,2]
[357111023,1743749433415,-330.92601882,0.00016856,2]
[357111024,1743749433424,-500.0,0.00016856,2]
[357111025,1743749433434,-500.0,0.00016856,2]
[357111026,1743749433443,-500.0,0.00016856,2]
[357111027,1743749433452,-536.19690787,0.00016856,2]
[357111028,1743749433464,-500.0,0.00016856,2]
[357111029,1743749433474,-500.0,0.00016856,2]
[357111030,1743749433484,-500.0,0.00016856,2]
[357111031,1743749433495,-397.26399938,0.00016856,2]
[357111032,1743749433505,-500.0,0.00016856,2]
[357111033,1743749433515,-500.0,0.00016856,2]
[357111034,1743749433524,-505.30781953,0.00016856,2]
[357111035,1743749433534,-500.0,0.00016856,2]
[357111036,1743749433546,-500.0,0.00016856,2]
[357111037,1743749433556,-500.0,0.00016856,2]
[357111038,1743749433566,-500.0,0.00016856,2]
[357111039,1743749433576,-500.0,0.00016856,2]
[357111040,1743749433586,-1368.37,0.00016856,2]
[357111041,1743749433595,-505.12,0.00016856,2]
[357111042,1743749433605,-560.35,0.00016856,2]
[357111043,1743749433616,-500.0,0.00016856,2]
[357111044,1743749433626,-500.0,0.00016856,2]
[357111045,1743749433637,-500.0,0.00016856,2]
[357111046,1743749433646,-642.86,0.00016856,2]
[357111047,1743749433656,-500.0,0.00016856,2]
[357111048,1743749433666,-879.77,0.00016856,2]
[357111049,1743749433676,-500.0,0.00016856,2]
[357111050,1743749433686,-500.0,0.00016856,2]
[357111051,1743749433696,-500.0,0.00016856,2]
[357111052,1743749433706,-500.0,0.00016856,2]
[357111053,1743749433716,-500.0,0.00016856,2]
[357111054,1743749433726,-500.0,0.00016857,2]
[357111055,1743749433736,-500.0,0.00016857,2]
[357111056,1743749433745,-500.0,0.00016857,2]
[357111057,1743749433755,-500.0,0.00016857,2]
[357111058,1743749433766,-500.0,0.00016857,2]
[357111059,1743749433775,-500.0,0.00016857,2]
[357111060,1743749433786,-500.0,0.00016857,2]
[357111061,1743749433796,-519.61661817,0.00016857,2]
[357111062,1743749433806,-264.89526996,0.00016857,2]
[357111063,1743749433816,-500.0,0.00016857,2]
[357111064,1743749433825,-500.0,0.00016857,2]
[357111065,1743749433835,-500.0,0.00016857,2]
[357111066,1743749433845,-500.0,0.00016857,2]
[357111067,1743749433856,-500.0,0.00016857,2]
[357111068,1743749433865,-500.0,0.00016857,2]
[357111069,1743749433875,-500.0,0.00016857,2]
[357111070,1743749433885,-527.69,0.00016857,2]
[357111071,1743749433895,-544.64,0.00016857,2]
[357111072,1743749433905,-500.0,0.00016857,2]
[357111073,1743749433915,-500.0,0.00016857,2]
[357111074,1743749433924,-500.0,0.00016857,2]
[357111075,1743749433935,-500.0,0.00016857,2]
[357111076,1743749433945,-500.0,0.00016857,2]
[357111077,1743749433959,-500.0,0.00016857,2]
[357111078,1743749433969,-500.0,0.00016857,2]
[357111079,1743749433979,-500.0,0.00016857,2]
[357111080,1743749433989,-500.0,0.00016857,2]
[357111081,1743749433999,-500.0,0.00016857,2]
[357111082,1743749434009,-500.0,0.00016857,2]
[357111083,1743749434019,-500.0,0.00016857,2]
[357111084,1743749434029,-555.7627102,0.00016857,2]
[357111085,1743749434039,-516.16634199,0.00016857,2]
[357111086,1743749434049,-521.01534072,0.00016857,2]
[357111087,1743749434059,-500.0,0.00016857,2]
[357111088,1743749434072,-495.6688315,0.00016857,2]
[357111089,1743749434082,-500.0,0.00016857,2]
[357111090,1743749434092,-500.0,0.00016857,2]
[357111091,1743749434101,-500.0,0.00016857,2]
[357111092,1743749434112,-500.0,0.00016857,2]
[357111093,1743749434122,-500.0,0.00016857,2]
[357111094,1743749434132,-500.0,0.00016857,2]
[357111095,1743749434142,-500.0,0.00016857,2]
[357111096,1743749434154,-500.0,0.00016857,2]
[357111097,1743749434164,-500.0,0.00016857,2]
[357111098,1743749434174,-615.66,0.00016857,2]
[357111099,1743749434185,-500.0,0.00016857,2]
[357111100,1743749434194,-500.0,0.00016857,2]
[357111101,1743749434204,-500.0,0.00016857,2]
[357111102,1743749434216,-500.0,0.00016857,2]
[357111103,1743749434226,-625.47,0.00016857,2]
[357111104,1743749434237,-500.0,0.00016857,2]
[357111105,1743749434247,-500.0,0.00016857,2]
[357111106,1743749434257,-500.0,0.00016857,2]
[357111107,1743749434276,-1382.12,0.00016857,2]
[357111108,1743749434288,-500.0,0.00016857,2]
[357111109,1743749434298,-500.0,0.00016857,2]
[357111110,1743749434308,-500.0,0.00016857,2]
[357111111,1743749434318,-500.0,0.00016857,2]
[357111112,1743749434329,-500.0,0.00016857,2]
[357111113,1743749434341,-551.93,0.00016857,2]
[357111114,1743749434353,-500.0,0.00016857,2]
[357111115,1743749434363,-500.0,0.00016857,2]
[357111116,1743749434374,-500.0,0.00016857,2]
[357111117,1743749434385,-500.0,0.00016857,2]
[357111118,1743749434395,-500.0,0.00016857,2]
[357111119,1743749434406,-500.0,0.00016857,2]
[357111120,1743749434416,-500.0,0.00016857,2]
[357111121,1743749434427,-500.0,0.00016857,2]
[357111122,1743749434438,-609.19569523,0.00016857,2]
[357111123,1743749434448,-567.82,0.00016857,2]
[357111124,1743749434458,-500.0,0.00016857,2]
[357111125,1743749434468,-500.0,0.00016857,2]
[357111126,1743749434480,-500.0,0.00016857,2]
[357111127,1743749434656,-466.10142987,0.00016857,2]
[357111128,1743749434667,-500.0,0.00016857,2]
[357111129,1743749434676,-500.0,0.00016857,2]
[357111130,1743749434686,-500.0,0.00016857,2]
[357111131,1743749434696,-500.0,0.00016857,2]
[357111132,1743749434705,-564.5,0.00016857,2]
[357111133,1743749434716,-500.0,0.00016857,2]
[357111134,1743749434726,-500.0,0.00016857,2]
[357111135,1743749434736,-500.0,0.00016857,2]
[357111136,1743749434747,-500.0,0.00016857,2]
[357111137,1743749434756,-500.0,0.00016858,2]
[357111138,1743749434766,-513.24351371,0.00016858,2]
[357111139,1743749434776,-500.0,0.00016859,2]
[357111140,1743749434785,-500.0,0.00016859,2]
[357111141,1743749434795,-500.0,0.00016859,2]
[357111142,1743749434804,-360.51069576,0.00016859,2]
[357111143,1743749434814,-500.0,0.00016859,2]
[357111144,1743749434823,-500.0,0.00016859,2]
[357111145,1743749434833,-313.28256747,0.00016859,2]
[357111146,1743749434843,-500.0,0.00016859,2]
[357111147,1743749434852,-500.0,0.00016859,2]
[357111148,1743749434862,-500.0,0.00016859,2]
[357111149,1743749434871,-500.0,0.00016859,2]
[357111150,1743749434881,-500.0,0.00016859,2]
[357111151,1743749434891,-500.0,0.00016859,2]
[357111152,1743749434901,-500.0,0.00016859,2]
[357111153,1743749434910,-500.0,0.00016859,2]
[357111154,1743749434919,-500.0,0.00016859,2]
[357111155,1743749434929,-500.0,0.00016859,2]
[357111156,1743749434939,-500.0,0.00016859,2]
[357111157,1743749434949,-500.0,0.00016859,2]
[357111158,1743749434958,-500.0,0.00016859,2]
[357111159,1743749434968,-368.09595321,0.00016859,2]
[357111160,1743749434978,-550.67876014,0.00016859,2]
[357111161,1743749434988,-500.0,0.00016859,2]
[357111162,1743749434998,-500.0,0.00016859,2]
[357111163,1743749435008,-500.0,0.00016859,2]
[357111164,1743749435018,-500.85584008,0.00016859,2]
[357111165,1743749435029,-500.0,0.00016859,2]
[357111166,1743749435039,-500.0,0.00016859,2]
[357111167,1743749435050,-500.0,0.00016859,2]
[357111168,1743749435060,-500.0,0.00016859,2]
[357111169,1743749435073,-500.0,0.00016859,2]
[357111170,1743749435083,-500.0,0.00016859,2]
[357111171,1743749435093,-500.0,0.00016859,2]
[357111172,1743749435104,-573.17,0.00016859,2]
[357111173,1743749435114,-500.0,0.00016859,2]
[357111174,1743749435125,-500.0,0.00016859,2]
[357111175,1743749435135,-500.0,0.00016859,2]
[357111176,1743749435146,-500.0,0.00016859,2]
[357111177,1743749435157,-567.19,0.00016859,2]
[357111178,1743749435167,-567.07501858,0.00016859,2]
[357111179,1743749435177,-364.63798459,0.00016859,2]
[357111180,1743749435187,-503.49316875,0.00016859,2]
[357111181,1743749435197,-511.71,0.00016859,2]
[357111182,1743749435207,-500.0,0.00016859,2]
[357111183,1743749435217,-500.0,0.00016859,2]
[357111184,1743749435227,-500.0,0.00016859,2]
[357111185,1743749435236,-527.06782919,0.00016859,2]
[357111186,1743749435246,-500.0,0.00016859,2]
[357111187,1743749435256,-500.0,0.00016859,2]
[357111188,1743749435266,-500.0,0.00016859,2]
[357111189,1743749435277,-500.0,0.00016859,2]
[357111190,1743749435288,-500.0,0.00016859,2]
[357111191,1743749435298,-500.0,0.00016859,2]
[357111192,1743749435308,-500.0,0.00016859,2]
[357111193,1743749435318,-500.0,0.00016859,2]
[357111194,1743749435329,-638.80952501,0.00016859,2]
[357111195,1743749435339,-346.3571085,0.00016859,2]
[357111196,1743749435349,-500.0,0.00016859,2]
[357111197,1743749435359,-500.0,0.00016859,2]
[357111198,1743749435369,-500.0,0.00016859,2]
[357111199,1743749435379,-500.0,0.00016859,2]
[357111200,1743749435390,-500.0,0.00016859,2]
[357111201,1743749435400,-500.0,0.00016859,2]
[357111202,1743749435410,-500.0,0.00016859,2]
[357111203,1743749435421,-500.0,0.00016859,2]
[357111204,1743749435431,-500.0,0.00016859,2]
[357111205,1743749435441,-500.0,0.00016859,2]
[357111206,1743749435451,-500.0,0.00016859,2]
[357111207,1743749435461,-500.0,0.00016859,2]
[357111208,1743749435471,-500.0,0.00016859,2]
[357111209,1743749435481,-500.0,0.00016859,2]
[357111210,1743749435490,-500.0,0.00016859,2]
[357111211,1743749435499,-500.0,0.00016859,2]
[357111212,1743749435509,-510.39599672,0.00016859,2]
[357111213,1743749435519,-500.0,0.00016859,2]
[357111214,1743749435529,-500.0,0.00016859,2]
[357111215,1743749435538,-500.0,0.00016859,2]
[357111216,1743749435548,-500.0,0.00016859,2]
[357111217,1743749435558,-500.0,0.00016859,2]
[357111218,1743749435567,-500.0,0.00016859,2]
[357111219,1743749435578,-500.0,0.00016859,2]
[357111220,1743749435588,-500.0,0.00016859,2]
[357111221,1743749435598,-500.0,0.00016859,2]
[357111222,1743749435608,-1000.0,0.00016859,2]
[357111223,1743749435619,-477.61338275,0.00016859,2]
[357111224,1743749435629,-500.0,0.00016859,2]
[357111225,1743749435639,-500.0,0.00016859,2]
[357111226,1743749435649,-500.0,0.00016859,2]
[357111227,1743749435659,-500.0,0.00016859,2]
[357111228,1743749435669,-500.0,0.00016859,2]
[357111229,1743749435679,-500.0,0.00016859,2]
[357111230,1743749435689,-500.0,0.00016859,2]
[357111231,1743749435699,-500.0,0.00016859,2]
[357111232,1743749435709,-500.0,0.00016859,2]
[357111233,1743749435719,-500.0,0.00016859,2]
[357111234,1743749435729,-500.0,0.00016859,2]
[357111235,1743749435738,-500.0,0.00016859,2]
[357111236,1743749435748,-500.0,0.00016859,2]
[357111237,1743749435758,-500.0,0.00016859,2]
[357111238,1743749435768,-500.0,0.00016859,2]